Cogmind - Beta 12 X2 @@@ ROGUE MODE // 2022.09.04 @ 08:14:49 Player: Exp. Geonium Core Result: Destroyed by D-53 Grenadier with Mini Grenade Launcher Performance ------------- Evolutions (0) 0 Regions Visited (2) 400 Robots Destroyed (13) 65 Value Destroyed (210) 210 Prototype IDs (0) 0 Alien Tech Used (0) 0 Bonus (0) 0 TOTAL SCORE: 675 Bonus ------- None Cogmind --------- Core Integrity 0/250 Matter 300/300 Energy 100/100 System Corruption 0% Temperature Cool (2) Movement Flying (40) Location -10/Mines Parts ------- > --- POWER (1) -------- (None) > --- PROPULSION (2) --- Flight Unit > --- UTILITY (2) ------ Utility Shielding > --- WEAPON (2) ------- EM Shotgun > --- INVENTORY (5) ---- Light Ion Engine Flight Unit Flight Unit EM Shotgun Peak State ------------ > --- POWER ------------ Light Ion Engine > --- PROPULSION ------- Light Treads Flight Unit > --- UTILITY ---------- Utility Shielding > --- WEAPON ----------- EM Shotgun EM Shotgun > --- INVENTORY -------- Flight Unit Flight Unit Flight Unit EM Shotgun EM Shotgun [Rating: 8] Favorites ----------- Power Light Ion Engine Engine Light Ion Engine Propulsion Flight Unit Treads Light Treads Leg Aluminum Leg Flight Unit Flight Unit Utility Utility Shielding Storage Small Storage Unit Protection Utility Shielding Weapon Assault Rifle Energy Gun EM Shotgun Ballistic Gun Assault Rifle Build | -11 -10 -10 ------- Run | Scr Mat Min Slots Evolved . | . . . Power . | . . . Propulsion . | . . . Utility . | . . . Weapon . | . . . Parts Attached 18 | . 16 2 Power 1 | . 1 . Engine 1 | . 1 . Core . | . . . Reactor . | . . . Propulsion 12 | . 10 2 Treads 6 | . 6 . Leg . | . . . Wheel . | . . . Hover . | . . . Flight 6 | . 4 2 Utility 1 | . 1 . Device . | . . . Storage . | . . . Processor . | . . . Hackware . | . . . Protection 1 | . 1 . Artifact . | . . . Weapon 4 | . 4 . Energy Gun 3 | . 3 . Energy Cannon . | . . . Ballistic Gun 1 | . 1 . Ballistic Cannon . | . . . Launcher . | . . . Special Weapon . | . . . Impact Weapon . | . . . Slashing Weapon . | . . . Piercing Weapon . | . . . Special Melee Weapon . | . . . Unidentified Prototypes . | . . . Parts Lost 7 | . 4 3 Power 1 | . 1 . Propulsion 4 | . 1 3 Utility . | . . . Weapon 2 | . 2 . Highest Loss Streak 3 | . 3 3 To Critical Strikes . | . . . Average Slot Usage (%) 80 | . 81 66 Engine 11 | . 11 14 Treads 12 | . 13 . Flight 13 | . 13 23 Storage 6 | . 6 . Protection 13 | . 13 14 Energy Gun 9 | . 8 14 Ballistic Gun 12 | . 13 . Naked Turns . | . . . Heaviest Build 13 | 12 13 7 Greatest Support 40 | 20 40 8 Greatest Overweight (x) 1 | . 1 . Average Overweight (x) . | . . . Largest Inventory Capacity 8 | . 8 5 Average Capacity 6 | . 6 5 Most Carried 8 | . 8 5 Average Carried 5 | . 6 3 Final Capacity 8 | 8 5 5 Final Carried 6 | 6 5 4 Class Distribution -------------------- 100% | Mutant Dominant Class ---------------- Mutant | -10/Materials Mutant | -10/Mines Resources | -11 -10 -10 ----------- Run | Scr Mat Min Matter Collected 469 | 200 254 15 Remotely . | . . . Salvage Created 343 | . 343 . Parts 31 | . 31 . Haulers Intercepted 1 | . 1 . Recyclers Shooed 1 | . 1 . Parts Field Recycled . | . . . Retrieved Matter . | . . . Parts Self-Destructed . | . . . Prevented . | . . . Kills | -11 -10 -10 ------- Run | Scr Mat Min Combat Hostiles Destroyed 10 | . 10 . Melee 1 | . 1 . Guns 9 | . 9 . Classes Destroyed 5 | . 5 . Builder 1 | . 1 . Tunneler 1 | . 1 . Hauler 1 | . 1 . Swarmer 6 | . 6 . Grunt 4 | . 4 . Best Kill Streak 5 | . 5 . Combat Bots Only 4 | . 4 . Max Kills in Single Turn 2 | . 2 . Gunslinging 1 | . 1 . Exploded . | . . . Melee 1 | . 1 . Uniques/NPCs Destroyed . | . . . Combat | -11 -10 -10 -------- Run | Scr Mat Min Damage Taken 835 | . 600 235 Core 257 | . 108 149 Absorbed by Shields . | . . . Redirected to Shielding 12 | . 12 . Core Remaining (%) 100 | 100 . . Volleys Fired 51 | . 51 . Largest 2 | . 2 . Hottest 90 | . 90 . Shots Fired 85 | . 85 . Gun 85 | . 85 . Cannon . | . . . Launcher . | . . . Special . | . . . Kinetic 64 | . 64 . Thermal . | . . . Explosive . | . . . Electromagnetic 21 | . 21 . Robot Hit Streak 9 | . 9 . Robot Miss Streak 4 | . 4 . Penetration Max . | . . . Secondary Targets 2 | . 2 . Max Gunslinging Chain 1 | . 1 . Shots Hit Robots 57 | . 57 . Core Hits 20 | . 20 . Critical Kills . | . . . Critical Parts Destroyed . | . . . Critical Strikes . | . . . Melee Attacks . | . . . Impact . | . . . Slashing . | . . . Piercing . | . . . Sneak Attacks . | . . . Combat Hostiles . | . . . Follow-up Attacks . | . . . Damage Inflicted 721 | . 721 . Guns 605 | . 605 . Cannons . | . . . Explosions 111 | . 111 . Melee . | . . . Ramming 5 | . 5 . Kinetic 418 | . 418 . Thermal 111 | . 111 . Explosive . | . . . Electromagnetic 187 | . 187 . Impact . | . . . Slashing . | . . . Piercing . | . . . Highest Corruption . | . . . Average Corruption . | . . . Corruption Purged . | . . . Corruption Blocked . | . . . Overload Shots . | . . . Overflow Damage 11 | . 11 . Projectiles . | . . . Explosions 11 | . 11 . Melee . | . . . Knockbacks . | . . . Impact . | . . . Kinetic . | . . . Secondary . | . . . Self-Inflicted Damage 43 | . 43 . Shots 2 | . 2 . Rammed 5 | . 5 . Targets Rammed 5 | . 5 . Kicked . | . . . Crushed . | . . . Highest Temperature 66 | . 66 2 Average Temperature 19 | . 19 2 Received Heat Transfer 240 | . 174 66 Siege Activations . | . . . Robots Corrupted . | . . . Combat Hostiles . | . . . Parts Fried 2 | . 2 . Impact Corruptions . | . . . Robots Melted . | . . . Combat Hostiles . | . . . Parts Melted . | . . . Heat Transferred 100 | . 100 . Parts Sabotaged . | . . . Parts Stolen . | . . . Parts Stripped . | . . . Power Chain Reactions 2 | . 2 . Missiles Intercepted . | . . . Alert | -11 -10 -10 ------- Run | Scr Mat Min Peak Influence 363 | . 363 105 Initial 90 | . . 90 Average 151 | . 155 96 Maximum Alert Level 1 | . 1 . Low Security (%) 61 | . 59 100 Level 1 38 | . 40 . Level 2 . | . . . Level 3 . | . . . Level 4 . | . . . Level 5 . | . . . High Security . | . . . Max Security . | . . . Squads Dispatched 3 | . 3 . Investigation 2 | . 2 . Extermination . | . . . Reinforcement 1 | . 1 . Assault . | . . . Garrison . | . . . Intercept . | . . . Searches Triggered . | . . . Construction Impeded . | . . . Haulers Reinforced . | . . . Active Scanning Responses . | . . . Cargo Convoy Interrupts . | . . . Stealth | -11 -10 -10 --------- Run | Scr Mat Min Distress Signals . | . . . Communications Jammed . | . . . Distress Signals . | . . . Times Spotted 31 | . 25 6 Peak Tracking Total 6 | . 6 6 Tactical Retreats 3 | . 3 . Traps | -11 -10 -10 ------- Run | Scr Mat Min Traps Triggered 1 | . 1 . Indirectly . | . . . Trap Hack Attempts . | . . . Triggered . | . . . Disarmed . | . . . Reprogrammed . | . . . Reused . | . . . Traps Extracted . | . . . Installed . | . . . Triggered . | . . . Machines | -11 -10 -10 ---------- Run | Scr Mat Min Machines Disabled . | . . . Max in Single Turn . | . . . Machines Sabotaged . | . . . Overloaded Fab Kills . | . . . Hacking | -11 -10 -10 --------- Run | Scr Mat Min Machines Accessed 3 | . 3 . Terminals 3 | . 3 . Fabricators . | . . . Repair Stations . | . . . Recycling Units . | . . . Scanalyzers . | . . . Garrison Access . | . . . Total Hacks 13 | . 13 . Successful 1 | . 1 . Failed 12 | . 12 . Catastrophic 5 | . 5 . Database Lockouts . | . . . Manual 13 | . 13 . Terminals 13 | . 13 . Fabricators . | . . . Repair Stations . | . . . Recycling Units . | . . . Scanalyzers . | . . . Garrison Access . | . . . Terminal Hacks 1 | . 1 . Branch Access Points 1 | . 1 . Fabricator Hacks . | . . . Repair Station Hacks . | . . . Recycling Unit Hacks . | . . . Scanalyzer . | . . . Garrison Access Hacks . | . . . Unauthorized Hacks . | . . . Terminals . | . . . Fabricators . | . . . Repair Stations . | . . . Recycling Units . | . . . Scanalyzers . | . . . Garrison Access . | . . . Data Cores Recovered . | . . . Used . | . . . Hacking Detections 3 | . 3 . Full Trace Events 1 | . 1 . Feedback Events . | . . . Feedback Blocked . | . . . Robot Schematics Acquired . | . . . Robots Built . | . . . Authchips . | . . . Time . | . . . Total Robot Build Rating . | . . . Part Schematics Acquired . | . . . Parts Built . | . . . Authchips . | . . . Time . | . . . Total Part Build Rating . | . . . Parts Repaired . | . . . Time . | . . . Parts Recycled . | . . . Recycled Matter . | . . . Retrieved Matter . | . . . Retrieved Components . | . . . Parts Scanalyzed . | . . . Part Schematics Acquired . | . . . Parts Damaged . | . . . Bothacking | -11 -10 -10 ------------ Run | Scr Mat Min Used RIF Installer . | . . . Robots Hacked . | . . . Non-combat . | . . . Combat . | . . . Robot Hacks Applied . | . . . Relay Couplers Released . | . . . Fabnet Peak Effective % . | . . . Robots Rewired . | . . . Allies Hacked . | . . . Hacks Repelled . | . . . Allies | -11 -10 -10 -------- Run | Scr Mat Min Total Allies . | . . . Largest Group . | . . . Highest-Rated Group . | . . . Highest-Rated Ally . | . . . Total Orders . | . . . Ally Attacks . | . . . Total Damage . | . . . Kills . | . . . Allies Corrupted . | . . . Allies Melted . | . . . Intel | -11 -10 -10 ------- Run | Scr Mat Min Robot Analysis Total . | . . . Derelict Logs Recovered 1 | . . 1 Drone Launches . | . . . Drone Recoveries . | . . . Exploration | -11 -10 -10 ------------- Run | Scr Mat Min Turns Passed 507 | . 476 31 Spaces Moved 608 | 1 530 77 Core . | . . . Treads 70 | . 70 . Legs 6 | 1 5 . Wheels . | . . . Hover . | . . . Flight 532 | . 455 77 Fastest Speed 37 | 120 37 37 Average Speed 52 | 120 54 37 Slowest Speed 190 | 120 190 37 Overloaded Moves . | . . . Propulsion Burnouts . | . . . Robots Hopped 9 | . 7 2 Cave-ins Triggered . | . . . Exploration Rate (%) 33 | 2 73 26 Regions Visited 2 Branch Regions 1 Pre-discovered Areas 1 | . . 1 Known Exits Taken 1 | . 1 . Unknown Exits Taken 1 | 1 . . Scrap Searched 2 | . . 2 Spaces Dug . | . . . Terrain Destroyed 9 | . 9 . Melee . | . . . Projectile . | . . . AOE 9 | . 9 . Terrain Rammed . | . . . Walls Destroyed . | . . . Machines Disabled . | . . . Actions | -11 -10 -10 --------- Run | Scr Mat Min Total 710 | . 632 78 Wait 5 | . 5 . Move 589 | . 516 73 Hop 8 | . 6 2 Pick Up 11 | . 11 . Fast Attach 12 | . 12 . Attach 3 | . 1 2 Detach 2 | . 1 1 Swap 3 | . 3 . Drop 21 | . 21 . Fire 51 | . 51 . Melee . | . . . Ram . | . . . Kick . | . . . Crush 5 | . 5 . Escape Stasis . | . . . Rewire . | . . . Trap . | . . . Miscellaneous . | . . . Route ------- -11/Scrapyard -10/Materials (discovered 3 exits: [*Mat x2] / *Min) -10/Mines History --------- Turn | Location | Event 1 | -11/Scrapyard | Discovered new exit (range 0) 1 | -11/Scrapyard | Entered Materials 249 | -10/Materials | Discovered new exit (range 4) 339 | -10/Materials | Lost 3 parts (1n2w) 343 | -10/Materials | Discovered new exit (range 5) 347 | -10/Materials | Build established: Mutant 435 | -10/Materials | Identified exit to Mines 477 | -10/Materials | Entered Mines 484 | -10/Mines | Core integrity fell below 50% 488 | -10/Mines | Learned location of Storage (-9) 499 | -10/Mines | Assembled infested the area 508 | -10/Mines | Destroyed by D-53 Grenadier with Mini Grenade Launcher Last Messages --------------- GOAL=ESCAPE 00479_ Flight Unit destroyed. 00488_ Acquired derelict log, extracted data. World map updated: -9/Storage. 00491_ Searching scrap... 00491_ Found Lrg. Matter Pod. 00491_ Found Hcp. Matter Pod. 00491_ Found 26 Matter. 00492_ Acquired 15 matter. 00495_ Searching scrap... 00495_ Found Ion Engine. 00495_ Found 13 Matter. 00495_ Found Sensor Array. 00495_ Found Com. Wheel. 00495_ Found 22 Matter. 00499_ ALERT: Infestation in the mines, dispatching Demolisher response squad. 00506_ C-30 ARC bursts open, deploying its payload. 00506_ D-53 Grenadier unfolds itself. 00508_ Flight Unit destroyed. Map ----- +----------------------------------------------------+ | ????????????????????????????????????????????????? | | ????????????????????????????????????????????????? | | ????????????????????????????????????????????????? | | ????????????????????????????????????????????????? | | ????????????????????????????????????????????????? | | ????????????????????????????????????????????????? | | ????????????????????????????????????????????????? | | ????????????????????????????????????????????????? | | ????????????????????????????????????????????????? | | ????????????????????????????????????????????????? | | ????????????????????????????????????????????????? | | ????????????????????????????????????????????????? | | ????????????????????????????????????????????????? | | ????????????????????????????????????????????????? | | ??????????????????#?????????????????????????????? | | ??????????????????# ???######???????????????????? | | ??????????????????# ??## ##??????????????????? | | ?????????????????## ?# ###????????????????? | | ????????????????## ## ##???????????????? | | ????????????????# #???????????????? | | ???????????????## #???????????????? | | ???????????????# # #??###??????????? | | ???????????????# # # #?? #??????????? | | ??????????????# dd ##?# #??# #??????????? | | ????????? # % #??# #??# #??????????? | | ?????????? ??# @ #??# #??# #?????????#? | | ?????????? ???# #??# #### #??????? #? | | ??????????? """ ?????# #?# #?????? ??? | | ?????????????""??????# #?###### #???? #???? | | ????????????????????? #?????## #### #????? | | ???????????????????? #?????# #????? | | ??????????????????? ##?????# #????? | | ?????????????????? ## ##??????# #######????? | | ????????????????? ##?#####???????# #??????????? | | ????????????????? #???????????????# #??????????? | | ???????????????? ????????????????# #??????????? | | ??????????????? ?????????????????# #??????????? | | ??????????????? ??????????????????#=!#??????????? | | ??????????????????????????????????#%%#??????????? | | ??????????????????????????????????#* #??????????? | | ???????????????????????????????#??# #??????????? | | ???????????????????????????????# ## #??????????? | | ???????????????????????????????# #?#####????? | | ???????????????????????????????#### #?# ?????? | | ??????????????????????????????????# #?# ??????? | | ??????????????????????????????????# #?# #??????? | | ??????????????????????????????????# ### ###????? | | ??????????????????????????????????# ## ###??? | | ??????????????????????????????????# ##?? | | ??????????????????????????????????#%! #?? | +----------------------------------------------------+ Best States ------------- Heat Dissipation 25 Energy Generation 10 Energy Capacity 125 Matter Stores 300 Matter Capacity 300 Sight Range 16 Terrain Scan Density 10 Utility Shielding 33 Evasion (%) 62 Recoil Reduction 2 Item Schematics ----------------- None Robot Schematics ------------------ None Fabricated ------------ Nothing Alien Tech Used ----------------- None Achievements -------------- None Challenges ------------ None Game ------ Seed FortressRecoilDesublimator Manual? 0 Play Time 00:08:09 Cumulative 317.6 hours Start 2022.09.04 @ 03:40:46 End 2022.09.04 @ 08:14:49 Sessions 3 Manual Loads 0 Difficulty Rogue Special Mode None Game No. 364 Rogue 364 Adventurer 0 Explorer 0 Win Type - Total 11 Types 8/0/2/1/0/0/0/0/0 Lore% 75 Gallery% 88 Achievement% 77 Wizard Run 0 Options --------- ASCII 0 Keyboard 0 Movement Numpad Keybinds 0 Fullscreen 1 Font 18/Terminus Map View 76x50 Tactical HUD 1 Map Filters NONE Filters NONE Steam 1 RUN: fe71323f-2f1d-4a0a-976b-112fd8915136